[Event "NJSK 2024 AmBm"]
[Site "Groningen, Netherlands"]
[Date "2024.05.01"]
[Round "5.3"]
[White "Kulikova, Polina"]
[Black "Knobbe, Elise"]
[Result "1/2-1/2"]
[TimeControl "90min/40moves + 30min + 30sec/move"]
[WhiteElo "1690"]
[BlackElo "1785"]

1. d4 {[%clk 01:30:59]} {[%emt 00:00:01]} f5 {[%clk 01:30:55]} {[%emt
00:00:05]} 2. Bg5 {[%clk 01:31:27]} {[%emt 00:00:02]} Nf6 {[%clk 01:31:07]}
{[%emt 00:00:18]} 3. Bxf6 {[%clk 01:31:55]} {[%emt 00:00:02]} exf6 {[%clk
01:30:55]} {[%emt 00:00:42]} 4. e3 {[%clk 01:32:09]} {[%emt 00:00:16]} d5
{[%clk 01:29:31]} {[%emt 00:01:53]} 5. c4 {[%clk 01:32:11]} {[%emt 00:00:29]}
c6 {[%clk 01:25:45]} {[%emt 00:04:16]} 6. cxd5 {[%clk 01:30:59]} {[%emt
00:01:42]} Qxd5 {[%clk 01:25:08]} {[%emt 00:01:06]} 7. Nc3 {[%clk 01:30:53]}
{[%emt 00:00:36]} Bb4 {[%clk 01:21:14]} {[%emt 00:04:24]} 8. Nge2 {[%clk
01:30:08]} {[%emt 00:01:15]} Qd6 {[%clk 01:15:11]} {[%emt 00:06:27]} 9. Nf4
{[%clk 01:29:56]} {[%emt 00:00:48]} Be6 {[%clk 01:13:52]} {[%emt 00:01:48]} 10.
Qh5+ {[%clk 01:19:00]} {[%emt 00:11:27]} g6 {[%clk 01:00:13]} {[%emt 00:14:09]}
11. Qd1 {[%clk 00:53:00]} {[%emt 00:26:31]} Bf7 {[%clk 00:57:10]} {[%emt
00:03:32]} 12. a3 {[%clk 00:51:43]} {[%emt 00:01:48]} Ba5 {[%clk 00:56:17]}
{[%emt 00:01:22]} 13. Qa4 {[%clk 00:48:56]} {[%emt 00:03:16]} Bc7 {[%clk
00:47:37]} {[%emt 00:09:11]} 14. Bc4 {[%clk 00:45:14]} {[%emt 00:04:11]} O-O
{[%clk 00:46:11]} {[%emt 00:01:57]} 15. Bxf7+ {[%clk 00:39:52]} {[%emt
00:05:52]} Rxf7 {[%clk 00:46:32]} {[%emt 00:00:09]} 16. Qb3 {[%clk 00:38:11]}
{[%emt 00:02:11]} Nd7 {[%clk 00:31:33]} {[%emt 00:15:30]} 17. g3 {[%clk
00:31:44]} {[%emt 00:06:56]} Nb6 {[%clk 00:27:46]} {[%emt 00:04:17]} 18. O-O
{[%clk 00:28:48]} {[%emt 00:03:26]} Re8 {[%clk 00:26:16]} {[%emt 00:02:00]} 19.
Rac1 {[%clk 00:26:46]} {[%emt 00:02:30]} Kg7 {[%clk 00:24:08]} {[%emt
00:02:41]} 20. Rfd1 {[%clk 00:25:32]} {[%emt 00:01:43]} Qe7 {[%clk 00:21:50]}
{[%emt 00:02:47]} 21. Nfe2 {[%clk 00:19:04]} {[%emt 00:06:59]} Rd8 {[%clk
00:20:30]} {[%emt 00:01:51]} 22. Na4 {[%clk 00:17:37]} {[%emt 00:01:57]} Nxa4
{[%clk 00:16:37]} {[%emt 00:04:23]} 23. Qxa4 {[%clk 00:17:49]} {[%emt
00:00:17]} Bb6 {[%clk 00:16:37]} {[%emt 00:00:30]} 24. Qc4 {[%clk 00:17:18]}
{[%emt 00:01:01]} Bc7 {[%clk 00:14:38]} {[%emt 00:02:29]} 25. b4 {[%clk
00:13:27]} {[%emt 00:04:21]} a5 {[%clk 00:13:10]} {[%emt 00:01:57]} 26. Nc3
{[%clk 00:12:39]} {[%emt 00:01:18]} axb4 {[%clk 00:10:17]} {[%emt 00:03:24]} 27.
axb4 {[%clk 00:10:37]} {[%emt 00:02:31]} Bd6 {[%clk 00:10:05]} {[%emt
00:00:42]} 28. b5 {[%clk 00:08:57]} {[%emt 00:02:10]} Qd7 {[%clk 00:07:49]}
{[%emt 00:02:46]} 29. bxc6 {[%clk 00:07:56]} {[%emt 00:01:31]} Qxc6 {[%clk
00:07:33]} {[%emt 00:00:46]} 30. Qxc6 {[%clk 00:05:20]} {[%emt 00:03:06]} bxc6
{[%clk 00:08:01]} {[%emt 00:00:02]} 31. Na4 {[%clk 00:05:42]} {[%emt 00:00:08]}
Rc7 {[%clk 00:07:02]} {[%emt 00:01:30]} 32. Nc5 {[%clk 00:05:59]} {[%emt
00:00:13]} Bxc5 {[%clk 00:04:36]} {[%emt 00:02:55]} 33. Rxc5 {[%clk 00:06:15]}
{[%emt 00:00:14]} Rd5 {[%clk 00:04:36]} {[%emt 00:00:31]} 34. Rdc1 {[%clk
00:06:13]} {[%emt 00:00:32]} Rxc5 {[%clk 00:04:57]} {[%emt 00:00:08]} 35. Rxc5
{[%clk 00:05:47]} {[%emt 00:00:56]} Kf7 {[%clk 00:05:12]} {[%emt 00:00:15]} 36.
d5 {[%clk 00:03:13]} {[%emt 00:03:04]} Ke7 {[%clk 00:05:16]} {[%emt 00:00:27]}
37. dxc6 {[%clk 00:01:47]} {[%emt 00:01:56]} Kd6 {[%clk 00:05:31]} {[%emt
00:00:13]} 38. Ra5 {[%clk 00:01:07]} {[%emt 00:01:11]} Rxc6 {[%clk 00:05:44]}
{[%emt 00:00:17]} 39. Ra8 {[%clk 00:01:24]} {[%emt 00:00:12]} Rc7 {[%clk
00:04:53]} {[%emt 00:01:22]} 40. Kg2 {[%clk 00:01:32]} {[%emt 00:00:22]} Ke6
{[%clk 00:04:00]} {[%emt 00:01:22]} 41. Kf3 {[%clk 00:01:13]} {[%emt 00:00:49]}
Kf7 {[%clk 00:02:22]} {[%emt 00:02:09]} 42. h3 {[%clk 00:00:34]} {[%emt
00:01:08]} h5 {[%clk 00:21:10]} {[%emt 00:11:42]} 43. Ra4 {[%clk 00:23:24]}
{[%emt 00:07:40]} g5 {[%clk 00:18:55]} {[%emt 00:02:44]} 44. h4 {[%clk
00:14:07]} {[%emt 00:09:46]} Rc6 {[%clk 00:18:15]} {[%emt 00:01:11]} 45. Ra7+
{[%clk 00:12:46]} {[%emt 00:01:51]} Kg6 {[%clk 00:18:29]} {[%emt 00:00:16]} 46.
Ra4 {[%clk 00:12:06]} {[%emt 00:01:09]} Rb6 {[%clk 00:15:54]} {[%emt 00:03:06]}
47. hxg5 {[%clk 00:09:40]} {[%emt 00:02:56]} fxg5 {[%clk 00:15:46]} {[%emt
00:00:38]} 48. e4 {[%clk 00:08:51]} {[%emt 00:01:19]} Rb3+ {[%clk 00:16:01]}
{[%emt 00:00:14]} 49. Kg2 {[%clk 00:08:29]} {[%emt 00:00:52]} fxe4 {[%clk
00:16:05]} {[%emt 00:00:27]} 50. Rxe4 {[%clk 00:08:53]} {[%emt 00:00:07]} Kf5
{[%clk 00:16:12]} {[%emt 00:00:21]} 51. Ra4 {[%clk 00:09:06]} {[%emt 00:00:18]}
Rb2 {[%clk 00:15:34]} {[%emt 00:01:08]} 1/2-1/2

[Event "NJSK 2024 AmBm"]
[Site "Groningen, Netherlands"]
[Date "2024.05.01"]
[Round "5.4"]
[White "Tangarife Ramirez, Katja"]
[Black "Oostinga, Elisa"]
[Result "1-0"]
[TimeControl "90min/40moves + 30min + 30sec/move"]
[WhiteElo "1742"]
[BlackElo "1713"]

1. d4 {[%clk 01:30:58]} {[%emt 00:00:01]} d5 {[%clk 01:30:53]} {[%emt
00:00:08]} 2. Nf3 {[%clk 01:31:26]} {[%emt 00:00:02]} c6 {[%clk 01:30:49]}
{[%emt 00:00:33]} 3. e3 {[%clk 01:31:39]} {[%emt 00:00:17]} Nf6 {[%clk
01:29:22]} {[%emt 00:01:58]} 4. b3 {[%clk 01:31:49]} {[%emt 00:00:20]} Bf5
{[%clk 01:27:32]} {[%emt 00:02:19]} 5. Bb2 {[%clk 01:32:13]} {[%emt 00:00:06]}
e6 {[%clk 01:27:04]} {[%emt 00:00:58]} 6. Nbd2 {[%clk 01:32:39]} {[%emt
00:00:05]} Nbd7 {[%clk 01:24:34]} {[%emt 00:03:00]} 7. Be2 {[%clk 01:32:58]}
{[%emt 00:00:11]} Be7 {[%clk 01:23:08]} {[%emt 00:01:55]} 8. O-O {[%clk
01:33:21]} {[%emt 00:00:08]} O-O {[%clk 01:20:54]} {[%emt 00:02:43]} 9. Nh4
{[%clk 01:30:05]} {[%emt 00:03:46]} Bg6 {[%clk 01:14:57]} {[%emt 00:06:28]} 10.
Nxg6 {[%clk 01:30:23]} {[%emt 00:00:12]} hxg6 {[%clk 01:15:18]} {[%emt
00:00:08]} 11. c4 {[%clk 01:28:33]} {[%emt 00:02:20]} Re8 {[%clk 01:06:47]}
{[%emt 00:09:01]} 12. a4 {[%clk 01:15:21]} {[%emt 00:13:42]} Bb4 {[%clk
00:51:16]} {[%emt 00:16:01]} 13. Ba3 {[%clk 01:13:49]} {[%emt 00:02:03]} Bxa3
{[%clk 00:48:07]} {[%emt 00:03:38]} 14. Rxa3 {[%clk 01:14:11]} {[%emt
00:00:09]} Qe7 {[%clk 00:47:35]} {[%emt 00:01:02]} 15. Ra1 {[%clk 01:12:14]}
{[%emt 00:02:27]} b6 {[%clk 00:37:39]} {[%emt 00:10:26]} 16. a5 {[%clk
01:07:18]} {[%emt 00:05:25]} e5 {[%clk 00:36:45]} {[%emt 00:01:24]} 17. dxe5
{[%clk 01:04:41]} {[%emt 00:03:07]} Nxe5 {[%clk 00:31:31]} {[%emt 00:05:44]} 18.
Qc2 {[%clk 00:57:43]} {[%emt 00:07:29]} Rad8 {[%clk 00:28:56]} {[%emt
00:03:04]} 19. axb6 {[%clk 00:53:09]} {[%emt 00:05:04]} axb6 {[%clk 00:28:47]}
{[%emt 00:00:39]} 20. Ra6 {[%clk 00:48:43]} {[%emt 00:04:56]} d4 {[%clk
00:18:49]} {[%emt 00:10:28]} 21. exd4 {[%clk 00:44:38]} {[%emt 00:04:35]} Rxd4
{[%clk 00:18:55]} {[%emt 00:00:23]} 22. Nf3 {[%clk 00:39:49]} {[%emt 00:05:19]}
Rd6 {[%clk 00:12:28]} {[%emt 00:06:56]} 23. Nxe5 {[%clk 00:36:01]} {[%emt
00:04:20]} Qxe5 {[%clk 00:12:50]} {[%emt 00:00:07]} 24. Bf3 {[%clk 00:36:21]}
{[%emt 00:00:10]} c5 {[%clk 00:12:19]} {[%emt 00:01:01]} 25. g3 {[%clk
00:30:39]} {[%emt 00:06:13]} g5 {[%clk 00:10:18]} {[%emt 00:02:31]} 26. h3
{[%clk 00:26:18]} {[%emt 00:04:51]} Red8 {[%clk 00:10:16]} {[%emt 00:00:32]} 27.
Qb1 {[%clk 00:18:58]} {[%emt 00:07:50]} Qe6 {[%clk 00:08:36]} {[%emt 00:02:09]}
28. Kg2 {[%clk 00:17:52]} {[%emt 00:01:36]} g4 {[%clk 00:05:24]} {[%emt
00:03:43]} 29. hxg4 {[%clk 00:17:05]} {[%emt 00:01:17]} Nxg4 {[%clk 00:05:27]}
{[%emt 00:00:26]} 30. Bd5 {[%clk 00:11:51]} {[%emt 00:05:44]} Qe2 {[%clk
00:03:43]} {[%emt 00:02:14]} 31. Ra7 {[%clk 00:07:37]} {[%emt 00:04:44]} Ne3+
{[%clk 00:03:22]} {[%emt 00:00:51]} 32. Kg1 {[%clk 00:06:42]} {[%emt 00:01:25]}
Nxf1 {[%clk 00:03:30]} {[%emt 00:00:22]} 33. Qxf1 {[%clk 00:05:25]} {[%emt
00:01:48]} Qxf1+ {[%clk 00:03:49]} {[%emt 00:00:10]} 34. Kxf1 {[%clk 00:05:47]}
{[%emt 00:00:07]} R6d7 {[%clk 00:03:55]} {[%emt 00:00:25]} 35. Ra1 {[%clk
00:05:32]} {[%emt 00:00:45]} Kf8 {[%clk 00:03:53]} {[%emt 00:00:33]} 36. Re1
{[%clk 00:05:03]} {[%emt 00:00:59]} Re7 {[%clk 00:04:02]} {[%emt 00:00:20]} 37.
Ra1 {[%clk 00:04:35]} {[%emt 00:00:58]} g6 {[%clk 00:03:58]} {[%emt 00:00:35]}
38. Kg2 {[%clk 00:03:45]} {[%emt 00:01:20]} Rdd7 {[%clk 00:03:27]} {[%emt
00:01:00]} 39. Ra6 {[%clk 00:03:27]} {[%emt 00:00:48]} Rd6 {[%clk 00:03:46]}
{[%emt 00:00:11]} 40. Kf3 {[%clk 00:03:20]} {[%emt 00:00:37]} Re1 {[%clk
00:03:47]} {[%emt 00:00:29]} 41. Kg4 {[%clk 00:02:42]} {[%emt 00:01:08]} Rb1
{[%clk 00:02:11]} {[%emt 00:02:05]} 42. Ra3 {[%clk 00:29:57]} {[%emt 00:03:16]}
Rf6 {[%clk 00:29:21]} {[%emt 00:03:20]} 43. f4 {[%clk 00:29:35]} {[%emt
00:00:52]} Rd6 {[%clk 00:26:06]} {[%emt 00:03:45]} 44. Kg5 {[%clk 00:27:24]}
{[%emt 00:02:42]} Kg7 {[%clk 00:18:57]} {[%emt 00:07:38]} 45. Ra7 {[%clk
00:26:13]} {[%emt 00:01:42]} Rf6 {[%clk 00:19:06]} {[%emt 00:00:20]} 46. Ra3
{[%clk 00:26:28]} {[%emt 00:00:16]} Rg1 {[%clk 00:18:38]} {[%emt 00:00:57]} 47.
Kg4 {[%clk 00:26:19]} {[%emt 00:00:39]} Re1 {[%clk 00:17:50]} {[%emt 00:01:16]}
48. Ra2 {[%clk 00:24:57]} {[%emt 00:01:52]} Re7 {[%clk 00:16:14]} {[%emt
00:02:05]} 49. Rb2 {[%clk 00:24:57]} {[%emt 00:00:31]} Rd6 {[%clk 00:16:04]}
{[%emt 00:00:39]} 50. b4 {[%clk 00:22:34]} {[%emt 00:02:53]} Rc7 {[%clk
00:12:28]} {[%emt 00:04:06]} 51. b5 {[%clk 00:21:04]} {[%emt 00:02:01]} Rdd7
{[%clk 00:12:06]} {[%emt 00:00:53]} 52. Rd2 {[%clk 00:19:34]} {[%emt 00:01:59]}
Ra7 {[%clk 00:11:51]} {[%emt 00:00:45]} 53. Rd3 {[%clk 00:19:12]} {[%emt
00:00:52]} Re7 {[%clk 00:11:33]} {[%emt 00:00:49]} 54. Rf3 {[%clk 00:17:37]}
{[%emt 00:02:05]} Ra2 {[%clk 00:11:19]} {[%emt 00:00:43]} 55. f5 {[%clk
00:12:42]} {[%emt 00:05:24]} f6 {[%clk 00:09:13]} {[%emt 00:02:37]} 56. fxg6
{[%clk 00:11:50]} {[%emt 00:01:22]} Kxg6 {[%clk 00:09:31]} {[%emt 00:00:11]} 57.
Kf4 {[%clk 00:11:30]} {[%emt 00:00:50]} Rd2 {[%clk 00:09:37]} {[%emt 00:00:24]}
58. g4 {[%clk 00:11:03]} {[%emt 00:00:58]} Rd4+ {[%clk 00:09:41]} {[%emt
00:00:26]} 59. Kg3 {[%clk 00:11:24]} {[%emt 00:00:08]} Re5 {[%clk 00:09:26]}
{[%emt 00:00:45]} 60. Rf4 {[%clk 00:06:35]} {[%emt 00:05:20]} Rxf4 {[%clk
00:09:03]} {[%emt 00:00:52]} 61. Kxf4 {[%clk 00:06:57]} {[%emt 00:00:08]} Re1
{[%clk 00:09:25]} {[%emt 00:00:09]} 62. Be4+ {[%clk 00:04:27]} {[%emt
00:03:01]} Kf7 {[%clk 00:09:23]} {[%emt 00:00:32]} 63. Bd5+ {[%clk 00:03:58]}
{[%emt 00:01:00]} Ke7 {[%clk 00:09:20]} {[%emt 00:00:32]} 64. Kf5 {[%clk
00:04:08]} {[%emt 00:00:20]} Re5+ {[%clk 00:09:02]} {[%emt 00:00:48]} 65. Kf4
{[%clk 00:03:49]} {[%emt 00:00:49]} Kd6 {[%clk 00:08:38]} {[%emt 00:00:54]} 66.
Bf7 {[%clk 00:03:53]} {[%emt 00:00:26]} Rg5 {[%clk 00:08:17]} {[%emt 00:00:50]}
67. Be8 {[%clk 00:03:26]} {[%emt 00:00:58]} Re5 {[%clk 00:07:46]} {[%emt
00:01:01]} 68. Bf7 {[%clk 00:03:28]} {[%emt 00:00:27]} Re1 {[%clk 00:07:40]}
{[%emt 00:00:36]} 69. Kf5 {[%clk 00:03:17]} {[%emt 00:00:43]} Rf1+ {[%clk
00:07:42]} {[%emt 00:00:27]} 70. Ke4 {[%clk 00:03:22]} {[%emt 00:00:25]} Ke7
{[%clk 00:05:26]} {[%emt 00:02:46]} 71. Bg8 {[%clk 00:03:40]} {[%emt 00:00:12]}
Kf8 {[%clk 00:05:34]} {[%emt 00:00:23]} 72. Be6 {[%clk 00:03:56]} {[%emt
00:00:13]} Kg7 {[%clk 00:05:21]} {[%emt 00:00:42]} 73. Kd5 {[%clk 00:03:53]}
{[%emt 00:00:34]} Re1 {[%clk 00:04:26]} {[%emt 00:01:25]} 74. Bf5 {[%clk
00:03:22]} {[%emt 00:01:01]} Kh6 {[%clk 00:03:23]} {[%emt 00:01:32]} 75. Kc6
{[%clk 00:03:30]} {[%emt 00:00:22]} Rc1 {[%clk 00:03:41]} {[%emt 00:00:12]} 76.
Kxb6 {[%clk 00:03:54]} {[%emt 00:00:05]} Rxc4 {[%clk 00:04:01]} {[%emt
00:00:11]} 77. Kc6 {[%clk 00:04:14]} {[%emt 00:00:10]} Rxg4 {[%clk 00:01:04]}
{[%emt 00:03:26]} 78. Bxg4 {[%clk 00:04:07]} {[%emt 00:00:38]} c4 {[%clk
00:01:28]} {[%emt 00:00:06]} 79. b6 {[%clk 00:04:24]} {[%emt 00:00:13]} c3
{[%clk 00:01:47]} {[%emt 00:00:11]} 80. Bd1 {[%clk 00:04:39]} {[%emt 00:00:15]}
f5 {[%clk 00:02:07]} {[%emt 00:00:10]} 81. b7 {[%clk 00:05:05]} {[%emt
00:00:04]} 1-0

[Event "NJSK 2024 AmBm"]
[Site "Groningen, Netherlands"]
[Date "2024.05.01"]
[Round "5.5"]
[White "Basa, Manasvita"]
[Black "Damen, Josephine"]
[Result "0-1"]
[TimeControl "90min/40moves + 30min + 30sec/move"]
[WhiteElo "1829"]
[BlackElo "1890"]

1. e4 {[%clk 01:30:57]} {[%emt 00:00:02]} e5 {[%clk 01:30:53]} {[%emt
00:00:08]} 2. Nc3 {[%clk 01:31:21]} {[%emt 00:00:06]} Nf6 {[%clk 01:31:18]}
{[%emt 00:00:05]} 3. f4 {[%clk 01:31:46]} {[%emt 00:00:06]} d5 {[%clk
01:31:43]} {[%emt 00:00:04]} 4. fxe5 {[%clk 01:32:11]} {[%emt 00:00:06]} Nxe4
{[%clk 01:32:06]} {[%emt 00:00:07]} 5. Qf3 {[%clk 01:32:34]} {[%emt 00:00:07]}
Nxc3 {[%clk 01:32:28]} {[%emt 00:00:08]} 6. bxc3 {[%clk 01:32:58]} {[%emt
00:00:06]} Qh4+ {[%clk 01:32:52]} {[%emt 00:00:06]} 7. g3 {[%clk 01:32:48]}
{[%emt 00:00:39]} Qe4+ {[%clk 01:33:16]} {[%emt 00:00:06]} 8. Qxe4 {[%clk
01:32:57]} {[%emt 00:00:22]} dxe4 {[%clk 01:33:41]} {[%emt 00:00:05]} 9. Bg2
{[%clk 01:31:38]} {[%emt 00:01:48]} Nc6 {[%clk 01:34:03]} {[%emt 00:00:09]} 10.
Bxe4 {[%clk 01:31:22]} {[%emt 00:00:46]} Nxe5 {[%clk 01:34:25]} {[%emt
00:00:07]} 11. d4 {[%clk 01:31:40]} {[%emt 00:00:13]} Ng6 {[%clk 01:27:06]}
{[%emt 00:07:48]} 12. Ne2 {[%clk 01:22:38]} {[%emt 00:09:33]} Rb8 {[%clk
01:17:52]} {[%emt 00:09:44]} 13. h4 {[%clk 00:56:20]} {[%emt 00:26:48]} Bd6
{[%clk 01:06:14]} {[%emt 00:12:07]} 14. Be3 {[%clk 00:53:11]} {[%emt 00:03:39]}
Bg4 {[%clk 00:53:56]} {[%emt 00:12:48]} 15. h5 {[%clk 00:46:44]} {[%emt
00:06:58]} Ne7 {[%clk 00:50:26]} {[%emt 00:03:59]} 16. Nf4 {[%clk 00:46:04]}
{[%emt 00:01:10]} Nf5 {[%clk 00:46:16]} {[%emt 00:04:39]} 17. Bf2 {[%clk
00:43:13]} {[%emt 00:03:23]} Kd8 {[%clk 00:41:55]} {[%emt 00:04:51]} 18. Kf1
{[%clk 00:42:36]} {[%emt 00:01:06]} Re8 {[%clk 00:38:49]} {[%emt 00:03:36]} 19.
Bd3 {[%clk 00:31:47]} {[%emt 00:11:20]} Ne3+ {[%clk 00:25:31]} {[%emt
00:13:48]} 20. Kg1 {[%clk 00:30:30]} {[%emt 00:01:47]} Bxf4 {[%clk 00:22:11]}
{[%emt 00:03:49]} 21. gxf4 {[%clk 00:30:32]} {[%emt 00:00:28]} Nd5 {[%clk
00:21:42]} {[%emt 00:00:59]} 22. Rh4 {[%clk 00:24:43]} {[%emt 00:06:19]} f5
{[%clk 00:20:32]} {[%emt 00:01:40]} 23. h6 {[%clk 00:18:22]} {[%emt 00:06:51]}
g6 {[%clk 00:13:44]} {[%emt 00:07:18]} 24. Rxg4 {[%clk 00:14:40]} {[%emt
00:04:12]} fxg4 {[%clk 00:13:50]} {[%emt 00:00:24]} 25. Bh4+ {[%clk 00:15:05]}
{[%emt 00:00:05]} Kd7 {[%clk 00:11:43]} {[%emt 00:02:37]} 26. f5 {[%clk
00:15:22]} {[%emt 00:00:13]} Nf4 {[%clk 00:09:49]} {[%emt 00:02:24]} 27. Bb5+
{[%clk 00:11:37]} {[%emt 00:04:15]} c6 {[%clk 00:09:55]} {[%emt 00:00:23]} 28.
Bc4 {[%clk 00:12:04]} {[%emt 00:00:04]} gxf5 {[%clk 00:08:02]} {[%emt
00:02:23]} 29. Rf1 {[%clk 00:12:05]} {[%emt 00:00:29]} Nh3+ {[%clk 00:06:50]}
{[%emt 00:01:42]} 30. Kg2 {[%clk 00:12:30]} {[%emt 00:00:05]} f4 {[%clk
00:06:11]} {[%emt 00:01:09]} 31. Bd3 {[%clk 00:12:39]} {[%emt 00:00:21]} Kc7
{[%clk 00:04:26]} {[%emt 00:02:14]} 32. Bf6 {[%clk 00:10:48]} {[%emt 00:02:21]}
Kb6 {[%clk 00:01:32]} {[%emt 00:03:25]} 33. Bxh7 {[%clk 00:09:52]} {[%emt
00:01:25]} Re2+ {[%clk 00:01:13]} {[%emt 00:00:50]} 34. Kh1 {[%clk 00:07:38]}
{[%emt 00:02:44]} g3 {[%clk 00:01:25]} {[%emt 00:00:17]} 35. Rb1+ {[%clk
00:07:30]} {[%emt 00:00:39]} Ka5 {[%clk 00:01:44]} {[%emt 00:00:11]} 36. Bd3
{[%clk 00:06:43]} {[%emt 00:01:17]} Rh2# {[%clk 00:01:21]} {[%emt 00:00:12]}
0-1

[Event "NJSK 2024 AmBm"]
[Site "Groningen, Netherlands"]
[Date "2024.05.01"]
[Round "5.6"]
[White "Luijkx, Dagmar"]
[Black "Yildirim, Azra"]
[Result "0-1"]
[TimeControl "90min/40moves + 30min + 30sec/move"]
[WhiteElo "1701"]
[BlackElo "1597"]

1. e4 {[%clk 01:30:59]} {[%emt 00:00:01]} e5 {[%clk 01:30:52]} {[%emt
00:00:08]} 2. Nc3 {[%clk 01:31:26]} {[%emt 00:00:03]} Nf6 {[%clk 01:30:44]}
{[%emt 00:00:38]} 3. f4 {[%clk 01:31:50]} {[%emt 00:00:05]} d5 {[%clk
01:30:47]} {[%emt 00:00:28]} 4. fxe5 {[%clk 01:32:04]} {[%emt 00:00:16]} Nxe4
{[%clk 01:30:26]} {[%emt 00:00:51]} 5. Qf3 {[%clk 01:31:58]} {[%emt 00:00:35]}
Nxc3 {[%clk 01:20:59]} {[%emt 00:09:58]} 6. bxc3 {[%clk 01:32:03]} {[%emt
00:00:25]} d4 {[%clk 01:17:15]} {[%emt 00:04:15]} 7. Bc4 {[%clk 01:30:04]}
{[%emt 00:02:27]} f5 {[%clk 01:01:31]} {[%emt 00:16:15]} 8. exf6 {[%clk
01:23:42]} {[%emt 00:06:52]} Qxf6 {[%clk 00:59:44]} {[%emt 00:02:17]} 9. Qxf6
{[%clk 01:22:32]} {[%emt 00:01:40]} gxf6 {[%clk 01:00:09]} {[%emt 00:00:05]} 10.
cxd4 {[%clk 01:22:23]} {[%emt 00:00:40]} Nc6 {[%clk 00:58:20]} {[%emt
00:02:18]} 11. Bb2 {[%clk 01:18:06]} {[%emt 00:04:46]} Bf5 {[%clk 00:51:18]}
{[%emt 00:07:32]} 12. O-O-O {[%clk 01:15:35]} {[%emt 00:03:01]} O-O-O {[%clk
00:50:57]} {[%emt 00:00:52]} 13. Nf3 {[%clk 01:09:35]} {[%emt 00:06:30]} Bg4
{[%clk 00:44:56]} {[%emt 00:06:31]} 14. c3 {[%clk 01:00:25]} {[%emt 00:09:41]}
Na5 {[%clk 00:39:20]} {[%emt 00:06:06]} 15. Be2 {[%clk 00:57:38]} {[%emt
00:03:16]} Bh6 {[%clk 00:36:36]} {[%emt 00:03:13]} 16. h3 {[%clk 00:52:12]}
{[%emt 00:05:57]} Be6 {[%clk 00:35:40]} {[%emt 00:01:26]} 17. Ba3 {[%clk
00:40:08]} {[%emt 00:12:34]} Bxa2 {[%clk 00:25:33]} {[%emt 00:10:37]} 18. Bd3
{[%clk 00:33:35]} {[%emt 00:07:03]} Rd5 {[%clk 00:22:14]} {[%emt 00:03:49]} 19.
Bb4 {[%clk 00:28:54]} {[%emt 00:05:11]} Bc4 {[%clk 00:17:58]} {[%emt 00:04:46]}
20. Be4 {[%clk 00:27:53]} {[%emt 00:01:30]} Rb5 {[%clk 00:17:11]} {[%emt
00:01:18]} 21. Kb2 {[%clk 00:22:21]} {[%emt 00:06:03]} b6 {[%clk 00:14:45]}
{[%emt 00:02:55]} 22. Ka3 {[%clk 00:21:28]} {[%emt 00:01:23]} c5 {[%clk
00:14:01]} {[%emt 00:01:14]} 23. dxc5 {[%clk 00:21:00]} {[%emt 00:00:58]} bxc5
{[%clk 00:14:26]} {[%emt 00:00:05]} 24. Bxc5 {[%clk 00:20:56]} {[%emt
00:00:35]} Rxc5 {[%clk 00:14:45]} {[%emt 00:00:11]} 25. Kb4 {[%clk 00:20:44]}
{[%emt 00:00:42]} Bf8 {[%clk 00:13:43]} {[%emt 00:01:31]} 26. d3 {[%clk
00:18:41]} {[%emt 00:02:33]} Rd5+ {[%clk 00:11:34]} {[%emt 00:02:39]} 27. Ka4
{[%clk 00:18:30]} {[%emt 00:00:41]} Bb3# {[%clk 00:11:36]} {[%emt 00:00:28]}
0-1